fUST/lending_fUST_20250107
["ID","MTS","AMOUNT","RATE_DAILY","PERIOD"]
[347946116,1736233840617,-152.0,0.00019066,2]
[347946117,1736233840626,-152.0,0.00019066,2]
[347946118,1736233840637,-152.0,0.00019066,2]
[347946119,1736233840646,-152.0,0.00019066,2]
[347946120,1736233840656,-152.0,0.00019066,2]
[347946121,1736233840666,-152.0,0.00019066,2]
[347946122,1736233840675,-152.0,0.00019066,2]
[347946123,1736233840685,-152.0,0.00019066,2]
[347946124,1736233840694,-152.0,0.00019066,2]
[347946125,1736233840703,-152.0,0.00019066,2]
[347946126,1736233840713,-152.0,0.00019066,2]
[347946127,1736233840723,-152.0,0.00019066,2]
[347946128,1736233840732,-152.0,0.00019066,2]
[347946129,1736233840742,-152.0,0.00019066,2]
[347946130,1736233840751,-152.0,0.00019066,2]
[347946131,1736233840760,-152.0,0.00019066,2]
[347946132,1736233840770,-152.0,0.00019066,2]
[347946133,1736233840779,-152.0,0.00019066,2]
[347946134,1736233840789,-152.0,0.00019066,2]
[347946135,1736233840798,-152.0,0.00019066,2]
[347946136,1736233840808,-152.0,0.00019066,2]
[347946137,1736233840817,-152.0,0.00019066,2]
[347946138,1736233840826,-218.0,0.00019066,2]
[347946139,1736233840836,-394.0,0.0001907,2]
[347946140,1736233840845,-805.35617807,0.00019071,2]
[347946141,1736233840855,-1312.55266657,0.00019078,2]
[347946142,1736233840865,-386.14391824,0.00019078,2]
[347946143,1736233840874,-3000.0,0.00019078,2]
[347946144,1736233840884,-749.0,0.000191,2]
[347946145,1736233840893,-150.0,0.000191,2]
[347946146,1736233840903,-150.0,0.000191,2]
[347946147,1736233840912,-183.42162145,0.000191,3]
[347946148,1736233840921,-3757.90204654,0.00019141,2]
[347946149,1736233840931,-157.0,0.00019144,2]
[347946150,1736233840940,-157.0,0.00019144,2]
[347946151,1736233840949,-157.0,0.00019144,2]
[347946152,1736233840958,-157.0,0.00019144,2]
[347946153,1736233840967,-157.0,0.00019144,2]
[347946154,1736233840977,-157.0,0.00019144,2]
[347946155,1736233840987,-163.82,0.00019144,2]
[347946156,1736233840996,-867.178,0.00019161,2]
[347946157,1736233841005,-188.51461307,0.00019173,2]
[347946158,1736233841015,-501.60949591,0.00019173,2]
[347946159,1736233841025,-500.0,0.00019173,2]
[347946160,1736233841034,-500.0,0.00019173,2]
[347946161,1736233841044,-500.0,0.00019173,2]
[347946162,1736233841053,-500.0,0.00019173,2]
[347946163,1736233841063,-328.89851883,0.00019173,2]
[347946164,1736233841072,-503.81661138,0.00019173,2]
[347946165,1736233841081,-501.06938499,0.00019173,2]
[347946166,1736233841091,-502.00796745,0.00019173,2]
[347946167,1736233841101,-500.0,0.00019173,2]
[347946168,1736233841110,-217.08049404,0.00019173,2]
[347946169,1736233841120,-501.50912896,0.00019173,2]
[347946170,1736233841130,-500.0,0.00019173,2]
[347946171,1736233841140,-500.0,0.00019177,2]
[347946172,1736233841149,-500.0,0.00019177,2]
[347946173,1736233841160,-235.04384611,0.00019177,2]
[347946174,1736233841169,-340.64330133,0.00019177,2]
[347946175,1736233841180,-500.0,0.00019177,2]
[347946176,1736233841191,-294.61543832,0.00019177,2]
[347946177,1736233841200,-8880.10114892,0.00019178,2]
[347946178,1736233841210,-69388.5105799,0.00019178,2]
[347946179,1736233841220,-179.045142,0.00019178,2]
[347946180,1736233841230,-179.045142,0.00019178,2]
[347946181,1736233841240,-179.045142,0.00019178,2]
[347946182,1736233841251,-179.045142,0.00019178,2]
[347946183,1736233841260,-179.045142,0.00019178,2]
[347946184,1736233841269,-179.045142,0.00019178,2]
[347946185,1736233841416,-179.045142,0.00019178,2]
[347946186,1736233841427,-179.045142,0.00019178,2]
[347946187,1736233841437,-179.045142,0.00019178,2]
[347946188,1736233841447,-179.045142,0.00019178,2]
[347946189,1736233841456,-179.045142,0.00019178,2]
[347946190,1736233841466,-179.045142,0.00019178,2]
[347946191,1736233841476,-179.045142,0.00019178,2]
[347946192,1736233841486,-179.045142,0.00019178,2]
[347946193,1736233841495,-179.045142,0.00019178,2]
[347946194,1736233841505,-179.045142,0.00019178,2]
[347946195,1736233841515,-179.045142,0.00019178,2]
[347946196,1736233841525,-179.045142,0.00019178,2]
[347946197,1736233841535,-179.045142,0.00019178,2]
[347946198,1736233841544,-179.045145,0.00019178,2]
[347946199,1736233841554,-1862.324192,0.00019178,2]
[347946200,1736233841564,-1862.324192,0.00019178,2]
[347946201,1736233841574,-1862.324192,0.00019178,2]
[347946202,1736233841583,-1862.324192,0.00019178,2]
[347946203,1736233841593,-1862.324192,0.00019178,2]
[347946204,1736233841602,-1862.324192,0.00019178,2]
[347946205,1736233841612,-1862.324192,0.00019178,2]
[347946206,1736233841621,-1862.324192,0.00019178,2]
[347946207,1736233841631,-1862.324192,0.00019178,2]
[347946208,1736233841641,-1862.324192,0.00019178,2]
[347946209,1736233841650,-1862.324192,0.00019178,2]
[347946210,1736233841660,-1862.324192,0.00019178,2]
[347946211,1736233841670,-1862.324192,0.00019178,2]
[347946212,1736233841679,-1862.324199,0.00019178,2]
[347946213,1736233841689,-151.0,0.00019178,2]
[347946214,1736233841699,-151.0,0.00019178,2]
[347946215,1736233841709,-151.0,0.00019178,2]
[347946216,1736233841719,-151.0,0.00019178,2]
[347946217,1736233841729,-151.0,0.00019178,2]
[347946218,1736233841739,-151.0,0.00019178,2]
[347946219,1736233841749,-151.0,0.00019178,2]
[347946220,1736233841759,-151.0,0.00019178,2]
[347946221,1736233841769,-206.177152,0.00019178,2]
[347946222,1736233841778,-151.0,0.00019178,2]
[347946223,1736233841788,-151.0,0.00019178,2]
[347946224,1736233841798,-151.0,0.00019178,2]
[347946225,1736233841808,-151.0,0.00019178,2]
[347946226,1736233841819,-151.0,0.00019178,2]
[347946227,1736233841830,-151.0,0.00019178,2]
[347946228,1736233841840,-151.0,0.00019178,2]
[347946229,1736233841850,-151.0,0.00019178,2]
[347946230,1736233841860,-151.0,0.00019178,2]
[347946231,1736233841869,-151.0,0.00019178,2]
[347946232,1736233841879,-151.0,0.00019178,2]
[347946233,1736233841889,-151.0,0.00019178,2]
[347946234,1736233841898,-151.0,0.00019178,2]
[347946235,1736233841908,-240.685625,0.00019178,2]
[347946236,1736233841917,-151.0,0.00019178,2]
[347946237,1736233841927,-151.0,0.00019178,2]
[347946238,1736233841936,-151.0,0.00019178,2]
[347946239,1736233841945,-151.0,0.00019178,2]
[347946240,1736233841954,-151.0,0.00019178,2]
[347946241,1736233841963,-151.0,0.00019178,2]
[347946242,1736233841973,-207.913765,0.00019178,2]
[347946243,1736233841982,-251.827136,0.00019178,2]
[347946244,1736233841992,-151.0,0.00019178,2]
[347946245,1736233842002,-151.0,0.00019178,2]
[347946246,1736233842011,-151.0,0.00019178,2]
[347946247,1736233842020,-151.0,0.00019178,2]
[347946248,1736233842030,-198.859597,0.00019178,2]
[347946249,1736233842039,-198.105238,0.00019178,2]
[347946250,1736233842050,-198.105238,0.00019178,2]
[347946251,1736233842060,-198.105238,0.00019178,2]
[347946252,1736233842069,-198.105238,0.00019178,2]
[347946253,1736233842079,-198.105238,0.00019178,2]
[347946254,1736233842088,-198.105238,0.00019178,2]
[347946255,1736233842098,-198.105238,0.00019178,2]
[347946256,1736233842107,-198.105238,0.00019178,2]
[347946257,1736233842116,-198.105238,0.00019178,2]
[347946258,1736233842126,-198.105238,0.00019178,2]
[347946259,1736233842136,-198.105238,0.00019178,2]
[347946260,1736233842146,-198.105238,0.00019178,2]
[347946261,1736233842155,-198.105238,0.00019178,2]
[347946262,1736233842165,-198.105238,0.00019178,2]
[347946263,1736233842175,-500.0,0.00019178,2]
[347946264,1736233842188,-500.0,0.00019178,2]
[347946265,1736233842200,-500.0,0.00019178,2]
[347946266,1736233842210,-500.0,0.00019178,2]
[347946267,1736233842221,-151.0,0.00019178,2]
[347946268,1736233842232,-151.0,0.00019178,2]
[347946269,1736233842242,-151.0,0.00019178,2]
[347946270,1736233842251,-151.0,0.00019178,2]
[347946271,1736233842262,-152.982809,0.00019178,2]
[347946272,1736233842272,-500.0,0.00019178,2]
[347946273,1736233842281,-500.0,0.00019178,2]
[347946274,1736233842290,-500.34723205,0.00019178,2]
[347946275,1736233842301,-500.63832401,0.00019178,2]
[347946276,1736233842310,-500.0,0.00019178,2]
[347946277,1736233842320,-500.0,0.00019178,2]
[347946278,1736233842330,-568.5290599,0.00019178,2]
[347946279,1736233842339,-500.0,0.00019178,2]
[347946280,1736233842350,-500.0,0.00019178,2]
[347946281,1736233842360,-151.0,0.00019178,2]
[347946282,1736233842370,-151.0,0.00019178,2]
[347946283,1736233842379,-151.0,0.00019178,2]
[347946284,1736233842389,-151.0,0.00019178,2]
[347946285,1736233842399,-151.0,0.00019178,2]
[347946286,1736233842410,-257.415072,0.00019178,2]
[347946287,1736233842420,-514.21120541,0.00019178,2]
[347946288,1736233842430,-504.93485881,0.00019178,2]
[347946289,1736233842439,-500.0,0.00019178,2]
[347946290,1736233842449,-500.0,0.00019178,2]
[347946291,1736233842459,-500.0,0.00019178,2]
[347946292,1736233842469,-500.48139971,0.00019178,2]
[347946293,1736233842479,-500.0,0.00019178,2]
[347946294,1736233842489,-500.0,0.00019178,2]
[347946295,1736233842499,-500.0,0.00019178,2]
[347946296,1736233842509,-500.0,0.00019178,2]
[347946297,1736233842519,-500.78599156,0.00019178,2]
[347946298,1736233842529,-501.70580802,0.00019178,2]
[347946299,1736233842538,-503.84498176,0.00019178,2]
[347946300,1736233842548,-500.31463645,0.00019178,2]
[347946301,1736233842558,-500.51000536,0.00019178,2]
[347946302,1736233842568,-500.0,0.00019178,2]
[347946303,1736233842578,-153.097019,0.00019178,2]
[347946304,1736233842588,-500.0,0.00019178,2]
[347946305,1736233842597,-428.74261144,0.00019178,2]
[347946307,1736233842607,-499.76085556,0.00019178,2]
[347946309,1736233842617,-500.0,0.00019178,2]
[347946311,1736233842626,-500.0,0.00019178,2]
[347946313,1736233842637,-500.0,0.00019178,2]
[347946315,1736233842649,-512.62452636,0.00019178,2]
[347946317,1736233842659,-500.0,0.00019178,2]
[347946319,1736233842668,-500.0,0.00019178,2]
[347946321,1736233842677,-500.0,0.00019178,2]
[347946323,1736233842687,-500.0,0.00019178,2]
[347946325,1736233842696,-500.0,0.00019178,2]
[347946326,1736233842706,-500.0,0.00019178,2]
[347946327,1736233842715,-500.0,0.00019178,2]
[347946328,1736233842725,-500.0,0.00019178,2]
[347946329,1736233842734,-502.95568878,0.00019178,2]
[347946330,1736233842744,-500.0,0.00019178,2]
[347946331,1736233842754,-500.0,0.00019178,2]
[347946332,1736233842763,-1295.072511,0.00019178,2]
[347946333,1736233842773,-1295.072511,0.00019178,2]
[347946335,1736233842783,-1295.072511,0.00019178,2]
[347946337,1736233842792,-1295.072511,0.00019178,2]
[347946339,1736233842802,-1295.072511,0.00019178,2]
[347946341,1736233842811,-1295.072511,0.00019178,2]
[347946343,1736233842820,-1295.072511,0.00019178,2]
[347946345,1736233842830,-1295.072511,0.00019178,2]
[347946347,1736233842839,-500.0,0.00019178,2]
[347946349,1736233842848,-1295.072511,0.00019178,2]
[347946351,1736233842858,-1295.072511,0.00019178,2]
[347946353,1736233842867,-500.0,0.00019178,2]
[347946355,1736233842877,-1295.072511,0.00019178,2]
[347946357,1736233842887,-1295.072511,0.00019178,2]
[347946359,1736233842896,-1295.072511,0.00019178,2]
[347946361,1736233842907,-1295.072511,0.00019178,2]
[347946363,1736233842916,-1295.072511,0.00019178,2]
[347946365,1736233842926,-1295.072511,0.00019178,2]
[347946367,1736233842936,-500.0,0.00019178,2]
[347946369,1736233842946,-1295.072511,0.00019178,2]
[347946371,1736233842955,-1295.072511,0.00019178,2]
[347946373,1736233842965,-500.0,0.00019178,2]
[347946375,1736233842975,-1295.072511,0.00019178,2]
[347946377,1736233842984,-500.0,0.00019178,2]
[347946379,1736233842994,-1295.072514,0.00019178,2]
[347946381,1736233843003,-500.0,0.00019178,2]
[347946383,1736233843012,-322.45356289,0.00019178,2]
[347946385,1736233843021,-500.0,0.00019178,2]
[347946387,1736233843030,-502.37061154,0.00019178,2]
[347946389,1736233843040,-500.0,0.00019178,2]
[347946391,1736233843049,-500.0,0.00019178,2]
[347946393,1736233843058,-500.0,0.00019178,2]
[347946395,1736233843067,-500.0,0.00019178,2]
[347946397,1736233843077,-500.0,0.00019178,2]
[347946399,1736233843086,-500.0,0.00019178,2]
[347946401,1736233843095,-500.0,0.00019178,2]
[347946403,1736233843104,-500.0,0.00019178,2]
[347946405,1736233843114,-502.91592873,0.00019178,2]
[347946408,1736233843123,-500.0,0.00019178,2]
[347946411,1736233843133,-500.0,0.00019178,2]
[347946414,1736233843142,-500.0,0.00019178,2]
[347946416,1736233843152,-500.0,0.00019178,2]
[347946418,1736233843162,-188.0,0.00019178,2]
[347946420,1736233843172,-545.13979332,0.00019178,2]
[347946422,1736233843183,-500.0,0.00019178,2]
[347946424,1736233843193,-500.0,0.00019178,2]
[347946426,1736233843202,-500.0,0.00019178,2]
[347946428,1736233843211,-500.0,0.00019178,2]
[347946430,1736233843222,-500.0,0.00019178,2]
[347946431,1736233843231,-500.0,0.00019178,2]
[347946433,1736233843240,-500.0,0.00019178,2]
[347946435,1736233843249,-151.0,0.00019178,2]
[347946437,1736233843260,-151.0,0.00019178,2]
[347946439,1736233843270,-151.0,0.00019178,2]
[347946441,1736233843279,-151.0,0.00019178,2]
[347946442,1736233843289,-500.0,0.00019178,2]
[347946444,1736233843298,-151.0,0.00019178,2]
[347946446,1736233843308,-153.219176,0.00019178,2]
[347946448,1736233843317,-500.0,0.00019178,2]
[347946450,1736233843327,-500.80833992,0.00019178,2]
[347946452,1736233843337,-500.0,0.00019178,2]
[347946454,1736233843346,-500.0,0.00019178,2]
[347946456,1736233843355,-500.0,0.00019178,2]
[347946457,1736233843364,-500.0,0.00019178,2]
[347946459,1736233843373,-500.0,0.00019178,2]
[347946461,1736233843383,-500.0,0.00019178,2]
[347946463,1736233843393,-500.0,0.00019178,2]
[347946465,1736233843403,-500.0,0.00019178,2]
[347946467,1736233843414,-500.0,0.00019178,2]
[347946468,1736233843426,-500.0,0.00019178,2]
[347946470,1736233843436,-500.0,0.00019178,2]
[347946472,1736233843446,-500.0,0.00019178,2]
[347946474,1736233843456,-500.0,0.00019178,2]
[347946476,1736233843466,-500.0,0.00019178,2]
[347946478,1736233843476,-353.79173902,0.00019178,2]
[347946480,1736233843486,-500.0,0.00019178,2]
[347946482,1736233843495,-500.0,0.00019178,2]
[347946484,1736233843505,-501.27086388,0.00019178,2]
[347946486,1736233843514,-500.0,0.00019178,2]
[347946487,1736233843524,-243.94906794,0.00019178,2]
[347946489,1736233843533,-515.06365391,0.00019178,2]
[347946491,1736233843543,-500.0,0.00019178,2]
[347946493,1736233843552,-500.98506428,0.00019178,2]
[347946495,1736233843562,-505.50937111,0.00019178,2]
[347946497,1736233843572,-296.182113,0.00019178,2]
[347946499,1736233843582,-296.182113,0.00019178,2]
[347946500,1736233843592,-230.23013721,0.00019178,2]
[347946504,1736233843624,-65.95197579,0.00019178,2]
[347946506,1736233843635,-296.182113,0.00019178,2]
[347946508,1736233843644,-78.57805695,0.00019178,2]
[347946510,1736233843656,-217.60405605,0.00019178,2]
[347946512,1736233843665,-94.65924395,0.00019178,2]
[347946514,1736233843677,-201.52286905,0.00019178,2]
[347946515,1736233843688,-296.182113,0.00019178,2]
[347946517,1736233843698,-296.182113,0.00019178,2]
[347946519,1736233843708,-249.81290495,0.00019178,2]
[347946542,1736233843943,-46.36920805,0.00019178,2]
[347946544,1736233843952,-296.182113,0.00019178,2]
[347946546,1736233843962,-296.182113,0.00019178,2]
[347946547,1736233843972,-500.0,0.00019178,2]
[347946549,1736233843981,-296.182113,0.00019178,2]
[347946551,1736233843990,-296.182113,0.00019178,2]
[347946553,1736233844000,-296.182113,0.00019178,2]
[347946555,1736233844009,-296.182113,0.00019178,2]
[347946557,1736233844019,-500.0,0.00019178,2]
[347946559,1736233844029,-296.182113,0.00019178,2]
[347946561,1736233844038,-296.182113,0.00019178,2]
[347946563,1736233844048,-296.182113,0.00019178,2]
[347946565,1736233844058,-296.182113,0.00019178,2]
[347946567,1736233844068,-296.18210894,0.00019178,2]
[347946569,1736233844078,-500.0,0.00019178,2]
[347946570,1736233844088,-500.0,0.00019178,2]
[347946572,1736233844098,-500.0,0.00019178,2]
[347946574,1736233844108,-392.54643805,0.00019178,2]
[347946577,1736233844131,-107.45356195,0.00019178,2]
[347946579,1736233844141,-500.0,0.00019178,2]
[347946581,1736233844151,-500.0,0.00019178,2]
[347946583,1736233844160,-500.0,0.00019178,2]
[347946585,1736233844170,-500.0,0.00019178,2]
[347946587,1736233844180,-500.0,0.00019178,2]
[347946589,1736233844193,-492.55549212,0.00019178,2]
[347946591,1736233844203,-7228.01,0.00019178,2]
[347946593,1736233844212,-500.0,0.00019178,2]
[347946594,1736233844221,-500.0,0.00019178,2]
[347946596,1736233844231,-338.87772781,0.00019178,2]
[347946598,1736233844240,-500.0,0.00019178,2]
[347946611,1736233844374,-510.74324825,0.00019178,2]
[347946613,1736233844385,-238.68026862,0.00019178,2]
[347946615,1736233844399,-327.29070899,0.00019178,2]
[347946617,1736233844409,-500.0,0.00019178,2]
[347946619,1736233844419,-504.4058613,0.00019178,2]
[347946621,1736233844430,-500.0,0.00019178,2]
[347946623,1736233844440,-500.0,0.00019178,2]
[347946625,1736233844449,-500.0,0.00019178,2]
[347946627,1736233844459,-500.0,0.00019178,2]
[347946629,1736233844469,-500.0,0.00019178,2]
[347946631,1736233844479,-500.0,0.00019178,2]
[347946633,1736233844489,-500.0,0.00019178,2]
[347946634,1736233844498,-500.0,0.00019178,2]
[347946636,1736233844507,-500.0,0.00019178,2]
[347946638,1736233844516,-500.0,0.00019178,2]
[347946640,1736233844527,-500.0,0.00019178,2]
[347946642,1736233844536,-500.0,0.00019178,2]
[347946644,1736233844546,-211.779571,0.00019178,2]
[347946646,1736233844555,-500.0,0.00019178,2]
[347946648,1736233844564,-211.779571,0.00019178,2]
[347946650,1736233844574,-211.779571,0.00019178,2]
[347946651,1736233844584,-211.779571,0.00019178,2]
[347946653,1736233844593,-531.45819254,0.00019178,2]
[347946655,1736233844603,-211.779571,0.00019178,2]
[347946657,1736233844612,-211.779571,0.00019178,2]
[347946659,1736233844622,-211.779571,0.00019178,2]
[347946661,1736233844632,-211.779571,0.00019178,2]
[347946663,1736233844642,-211.779571,0.00019178,2]
[347946665,1736233844651,-211.779571,0.00019178,2]
[347946667,1736233844661,-558.2,0.00019178,2]
[347946668,1736233844670,-211.779571,0.00019178,2]
[347946670,1736233844680,-211.779571,0.00019178,2]
[347946672,1736233844690,-211.779571,0.00019178,2]
[347946674,1736233844700,-211.779571,0.00019178,2]
[347946676,1736233844710,-211.779571,0.00019178,2]
[347946678,1736233844720,-211.779571,0.00019178,2]
[347946680,1736233844730,-211.779571,0.00019178,2]
[347946682,1736233844741,-211.779571,0.00019178,2]
[347946684,1736233844751,-211.779571,0.00019178,2]
[347946686,1736233844760,-211.779572,0.00019178,2]
[347946687,1736233844769,-515.62384785,0.00019178,2]
[347946689,1736233844779,-1110.33,0.00019178,2]
[347946691,1736233844788,-516.24903607,0.00019178,2]
[347946693,1736233844797,-500.0,0.00019178,2]
[347946695,1736233844807,-500.0,0.00019178,2]
[347946697,1736233844816,-500.0,0.00019178,2]
[347946699,1736233844826,-500.0,0.00019178,2]
[347946700,1736233844835,-500.0,0.00019178,2]
[347946702,1736233844844,-500.0,0.00019178,2]
[347946704,1736233844854,-500.0,0.00019178,2]
[347946706,1736233844863,-500.0,0.00019178,2]
[347946708,1736233844873,-569.15763555,0.00019178,2]
[347946710,1736233844882,-500.0,0.00019178,2]
[347946712,1736233844892,-1000.0,0.00019178,2]
[347946714,1736233844902,-500.0,0.00019178,2]
[347946715,1736233844911,-500.0,0.00019178,2]
[347946717,1736233844920,-503.01129463,0.00019178,2]
[347946719,1736233844930,-500.0,0.00019178,2]
[347946721,1736233844940,-457.45006751,0.00019178,2]
[347946723,1736233844950,-151.0,0.00019178,2]
[347946725,1736233844960,-151.0,0.00019178,2]
[347946727,1736233844970,-151.0,0.00019178,2]
[347946729,1736233844980,-151.0,0.00019178,2]
[347946731,1736233844990,-500.0,0.00019178,2]
[347946733,1736233844999,-321.84887538,0.00019178,2]
[347946735,1736233845010,-99.4670654,0.00019178,2]
[347946803,1736233845973,-352.9591083,0.00018411,2]
[347946804,1736233845984,-51.5329346,0.00019178,2]
[347946805,1736233845993,-151.0,0.00019178,2]
[347946806,1736233846003,-500.0,0.00019178,2]
[347946807,1736233846012,-452.25468756,0.00019178,2]
[347946808,1736233846021,-500.0,0.00019178,2]
[347946809,1736233846031,-500.0,0.00019178,2]
[347946811,1736233846040,-280.83576954,0.00019178,2]
[347946813,1736233846052,-219.16423046,0.00019178,2]
[347946815,1736233846062,-500.0,0.00019178,2]
[347946817,1736233846071,-500.0,0.00019178,2]
[347946819,1736233846081,-500.0,0.00019178,2]
[347946821,1736233846090,-501.40886777,0.00019178,2]
[347946823,1736233846100,-500.0,0.00019178,2]
[347946825,1736233846109,-500.0,0.00019178,2]
[347946827,1736233846118,-500.0,0.00019178,2]
[347946829,1736233846128,-218.69938817,0.00019178,2]
[347946831,1736233846140,-500.0,0.00019178,2]
[347946833,1736233846150,-500.0,0.00019178,2]
[347946835,1736233846159,-561.5037145,0.00019178,2]
[347946837,1736233846169,-500.0,0.00019178,2]
[347946839,1736233846179,-656.67,0.00019178,2]
[347946841,1736233846192,-273.57370854,0.00019178,2]
[347946853,1736233846298,-231.89592685,0.00019178,2]
[347946855,1736233846307,-500.0,0.00019178,2]
[347946857,1736233846316,-500.0,0.00019178,2]
[347946859,1736233846326,-504.18648522,0.00019178,2]
[347946861,1736233846335,-351.19768785,0.00019178,2]
[347946863,1736233846347,-148.80231215,0.00019178,2]
[347946865,1736233846356,-500.0,0.00019178,2]
[347946867,1736233846366,-500.0,0.00019178,2]
[347946870,1736233846375,-500.0,0.00019178,2]
[347946871,1736233846385,-500.0,0.00019178,2]
[347946874,1736233846394,-500.0,0.00019178,2]
[347946875,1736233846404,-500.0,0.00019178,2]
[347946877,1736233846413,-500.0,0.00019178,2]
[347946879,1736233846423,-178.5799104,0.00019178,2]
[347946881,1736233846432,-500.0,0.00019178,2]
[347946883,1736233846442,-500.0,0.00019178,2]
[347946885,1736233846451,-500.0,0.00019178,2]
[347946887,1736233846461,-511.0404367,0.00019178,2]
[347946889,1736233846470,-500.0,0.00019178,2]
[347946891,1736233846480,-500.0,0.00019178,2]
[347946893,1736233846489,-500.0,0.00019178,2]
[347946895,1736233846498,-502.55810365,0.00019178,2]
[347946897,1736233846507,-500.0,0.00019178,2]
[347946899,1736233846517,-500.0,0.00019178,2]
[347946901,1736233846526,-500.0,0.00019178,2]
[347946903,1736233846535,-500.0,0.00019178,2]
[347946905,1736233846545,-505.01674283,0.00019178,2]
[347946907,1736233846555,-500.0,0.00019178,2]
[347946909,1736233846564,-500.0,0.00019178,2]
[347946911,1736233846574,-500.0,0.00019178,2]
[347946913,1736233846583,-500.0,0.00019178,2]
[347946915,1736233846592,-636.03693172,0.00019178,2]
[347946917,1736233846601,-290.4961357,0.00019178,2]
[347946919,1736233846610,-500.0,0.00019178,2]
[347946921,1736233846620,-500.0,0.00019178,2]
[347946923,1736233846629,-500.0,0.00019178,2]
[347946925,1736233846640,-500.67319518,0.00019178,2]
[347946927,1736233846649,-500.0,0.00019178,2]
[347946929,1736233846658,-500.0,0.00019178,2]
[347946931,1736233846668,-500.0,0.00019178,2]
[347946933,1736233846677,-500.0,0.00019178,2]
[347946935,1736233846686,-500.0,0.00019178,2]
[347946937,1736233846696,-505.31424948,0.00019178,2]
[347946939,1736233846705,-500.0,0.00019178,2]
[347946942,1736233846715,-500.0,0.00019178,2]
[347946944,1736233846724,-502.82924439,0.00019178,2]
[347946946,1736233846733,-502.77013542,0.00019178,2]
[347946948,1736233846742,-236.383036,0.00019178,2]
[347946950,1736233846751,-136.86901289,0.00019178,2]
[347947543,1736233880820,400.0,0.00013973,2]
[347947545,1736234824812,400.0,0.00013973,2]
[347947566,1736234951107,-634.87464162,0.0001664,2]
[347947624,1736235032260,-253.83063043,0.0001695,2]
[347947626,1736235032270,-300.0,0.00016999,2]
[347947628,1736235032279,-1012.71877385,0.00017,7]
[347947632,1736235032303,-1869.21193431,0.00017,7]
[347947634,1736235032314,-482.72,0.00017,7]
[347947636,1736235032326,-26761.2969587,0.00017,7]
[347947637,1736235032335,-189.1483513,0.0001705,2]
[347947638,1736235032343,-3685.1522983,0.00017149,2]
[347947639,1736235032353,-706.12281547,0.00017592,2]
[347947640,1736235032361,-24900.0,0.00017718,2]
[347947641,1736235032371,-391.5289171,0.00017718,2]
[347947642,1736235032380,-711.166705,0.0001772,2]
[347947643,1736235032389,-253.83063042,0.00017835,2]
[347947644,1736235032398,-156.905192,0.00018,5]
[347947645,1736235032407,-3221.27142139,0.00018,2]
[347947646,1736235032416,-1666.03683114,0.00018009,2]
[347947647,1736235032427,-2064.5055936,0.00018009,2]
[347947648,1736235032439,-3484.62258016,0.00018009,2]
[347947649,1736235032450,-633.90707799,0.00018009,2]
[347947827,1736235038077,-3357.83542591,0.00018009,2]
[347947828,1736235038088,-183.8183458,0.00018047,2]
[347947829,1736235038102,-415.19541066,0.00018107,2]
[347947830,1736235038114,-2806.07601063,0.00018107,2]
[347947831,1736235038123,-602.33546094,0.00018219,2]
[347947832,1736235038134,-500.0,0.00018219,2]
[347947833,1736235038144,-500.0,0.00018219,2]
[347947834,1736235038154,-500.0,0.00018219,2]